bitfinex-derivatives/quotes_ETHF0:USTF0_20250905
["timestamp","ask_amount","ask_price","bid_price","bid_amount"]
[1757059173030,0.6436,4421.4,4421.3,3.2078]
[1757059174541,1.0883,4421.4,4421.3,3.2078]
[1757059175225,1.71619315,4421.4,4421.3,3.2078]
[1757059175422,2.16449315,4421.4,4421.3,3.2078]
[1757059177723,0.7194,4422.0,4421.3,3.2078]
[1757059177929,0.6436,4421.9,4421.4,0.40704]
[1757059178130,0.6436,4421.9,4421.8,3.2078]
[1757059178329,3.2078,4423.1,4422.0,0.40697]
[1757059178330,0.6436,4422.4,4422.0,0.40697]
[1757059178530,0.62789315,4422.8,4422.3,3.2078]
[1757059178732,0.6436,4422.7,4422.3,3.4528]
[1757059179331,0.7566,4422.6,4422.3,3.4528]
[1757059179522,0.6436,4422.4,4422.3,3.4528]
[1757059180530,1.5366,4422.4,4422.3,3.2078]
[1757059180833,1.0883,4422.4,4422.3,3.2078]
[1757059181023,0.6436,4422.4,4422.3,3.2078]
[1757059181533,1.5366,4422.4,4422.3,3.2078]
[1757059181835,1.0883,4422.4,4422.3,3.2078]
[1757059182638,0.6436,4422.4,4422.3,3.2078]
[1757059184040,0.2747,4422.5,4422.3,3.2078]
[1757059184540,0.9183,4422.5,4422.3,3.4518]
[1757059184940,0.6436,4422.4,4422.3,3.4518]
[1757059185336,0.22613,4422.3,4421.0,2.86656961]
[1757059185536,0.62789315,4421.1,4421.0,0.2592]
[1757059185735,0.62789315,4421.1,4421.0,0.9111]
[1757059185736,0.87189315,4421.1,4421.0,0.9111]
[1757059186338,4.87189315,4421.1,4421.0,0.9111]
[1757059186736,4.87189315,4421.1,4420.5,0.2592]
[1757059186944,3.83569315,4420.6,4420.5,0.9111]
[1757059187144,4.07969315,4420.6,4420.5,0.6519]
[1757059187339,4.07969315,4420.6,4420.0,0.2268]
[1757059187340,8.07969315,4420.6,4420.0,0.8787]
[1757059187543,3.2078,4420.1,4420.0,0.8787]
[1757059187744,3.4518,4420.1,4420.0,0.8787]
[1757059188042,3.6076,4420.1,4419.6,0.6537]
[1757059188244,3.6076,4420.1,4419.5,0.2268]
[1757059188543,3.6076,4420.1,4419.5,0.8805]
[1757059188734,3.3636,4419.6,4419.5,0.8805]
[1757059188936,3.6076,4419.6,4419.5,0.8805]
[1757059189838,3.6076,4419.6,4419.0,0.9129]
[1757059189839,3.6563,4419.6,4419.0,0.9129]
[1757059190048,0.1558,4419.1,4419.0,0.9129]
[1757059190346,3.6076,4419.1,4419.0,0.6537]
[1757059192038,0.1558,4419.1,4419.0,1.3685]
[1757059192245,3.3636,4419.6,4419.5,0.9158]
[1757059192448,5.85926605,4419.6,4418.8,0.6537]
[1757059192639,3.2078,4419.1,4418.8,1.5488]
[1757059192841,5.45946605,4419.8,4419.1,0.6537]
[1757059193135,3.3636,4419.2,4418.5,0.2592]
[1757059193443,0.0779,4418.6,4418.5,1.3656]
[1757059193746,0.3219,4418.6,4418.5,1.3656]
[1757059193948,0.3998,4418.6,4418.5,1.3656]
[1757059194635,0.3219,4418.6,4418.5,1.808]
[1757059195040,0.0779,4418.6,4418.5,1.808]
[1757059195243,0.244,4418.6,4418.5,1.808]
[1757059195447,0.3998,4418.6,4418.5,1.3656]
[1757059195944,1.60304686,4422.0,4418.5,1.3656]
[1757059195945,3.2078,4419.7,4419.2,0.6537]
[1757059196149,2.65146605,4419.6,4419.5,0.9158]
[1757059196350,2.49566605,4419.6,4419.5,0.9158]
[1757059196540,2.49566605,4419.6,4419.0,0.2621]
[1757059196741,5.45946605,4419.1,4419.0,0.2621]
[1757059196943,5.70346605,4419.1,4419.0,0.9158]
[1757059197450,0.4581,4418.3,4418.2,3.6605]
[1757059197650,0.4581,4418.3,4418.2,4.1029]
[1757059197651,0.7021,4418.3,4418.2,4.1029]
[1757059198050,0.4581,4418.3,4418.2,4.1029]
[1757059198252,0.7021,4418.3,4418.2,4.1029]
[1757059198752,0.4581,4418.3,4418.2,4.1029]
[1757059198952,0.7021,4418.3,4418.2,4.1029]
[1757059199339,0.244,4418.3,4418.2,4.1029]
[1757059199545,0.244,4418.3,4418.2,4.7566]
[1757059199944,0.244,4418.3,4418.2,1.5488]
[1757059200140,0.7021,4418.3,4418.2,1.5488]
[1757059200356,0.4581,4418.3,4418.2,1.5488]
[1757059200648,0.7021,4418.3,4418.2,1.5488]
[1757059200851,0.244,4418.3,4418.2,1.5488]
[1757059201352,0.7021,4418.3,4418.2,1.5488]
[1757059201553,3.3209,4418.5,4418.3,0.6537]
[1757059201741,3.3209,4418.5,4418.3,0.8951]
[1757059201945,0.1131,4418.5,4418.4,1.5488]
[1757059202146,0.244,4418.5,4418.4,1.5488]
[1757059202452,0.4581,4419.6,4419.5,1.8109]
[1757059202648,1.6161,4419.6,4419.1,0.6537]
[1757059202848,0.244,4419.5,4419.0,1.1572]
[1757059203050,0.7021,4419.4,4419.3,0.8951]
[1757059203460,31.229,4420.3,4419.3,0.8951]
[1757059203757,1.2082596,4423.6,4419.3,0.8951]
[1757059204056,1.2082596,4423.8,4419.3,0.8951]
[1757059204258,3.2078,4420.6,4419.6,3.2078]
[1757059204562,0.244,4420.5,4419.7,0.6537]
[1757059204752,1.1684,4420.5,4419.6,3.2078]
[1757059204958,0.6917,4420.4,4419.7,0.6537]
[1757059205248,0.6917,4419.7,4419.2,0.6537]
[1757059205455,3.2078,4419.3,4419.2,0.6537]
[1757059205856,3.2078,4419.9,4419.2,0.6537]
[1757059206057,0.244,4419.8,4419.3,0.6537]
[1757059206258,0.3571,4419.8,4419.3,0.6537]
[1757059206567,0.6917,4419.7,4419.1,0.6537]
[1757059206857,0.6917,4419.3,4419.1,0.6537]
[1757059207060,0.244,4419.2,4419.1,0.6537]
[1757059207453,3.2078,4419.4,4419.1,0.6537]
[1757059207755,0.244,4419.3,4419.1,0.6537]
[1757059208052,3.2078,4419.4,4419.1,0.6537]
[1757059208257,0.244,4419.3,4419.1,0.6537]
[1757059208456,0.1131,4419.8,4419.6,0.6537]
[1757059208657,0.244,4419.7,4419.6,0.6537]
[1757059209354,0.1131,4419.8,4419.6,0.6537]
[1757059209659,0.244,4419.7,4419.6,0.6537]
[1757059212162,0.1131,4419.8,4419.6,0.6537]
[1757059212352,0.1131,4419.8,4419.7,1.5488]
[1757059212553,3.2078,4420.1,4419.7,1.5488]
[1757059212753,3.2078,4420.1,4420.0,1.8109]
[1757059212954,3.4518,4420.1,4420.0,1.8109]
[1757059213157,3.9099,4420.1,4420.0,1.8109]
[1757059213360,0.7021,4420.1,4420.0,1.8109]
[1757059213561,0.4581,4420.1,4420.0,1.8109]
[1757059213762,0.7021,4420.1,4420.0,1.8109]
[1757059214663,0.4581,4420.1,4420.0,1.8109]
[1757059214863,0.7021,4420.1,4420.0,1.8109]
[1757059215064,0.244,4420.1,4420.0,1.8109]
[1757059215364,0.1131,4420.3,4420.0,1.1572]
[1757059215560,0.1131,4420.3,4420.1,0.8951]
[1757059215766,0.1131,4420.3,4420.2,1.5488]
[1757059216060,0.7021,4420.3,4420.2,1.5488]
[1757059216356,35.46702,4420.6,4420.3,0.6537]
[1757059216557,0.9244,4420.4,4420.3,1.1064]
[1757059216753,1.5179594,4420.4,4420.3,1.1064]
[1757059216953,2.2096594,4420.4,4420.3,1.1064]
[1757059217153,1.6161,4420.4,4420.0,0.2621]
[1757059217358,0.6917,4420.3,4420.2,1.1064]
[1757059217659,1.6161,4420.3,4420.2,0.6537]
[1757059217958,1.14232,4420.6,4420.5,1.8109]
[1757059218161,1.59522,4420.6,4420.5,1.8109]
[1757059218356,1.02922,4420.6,4420.5,1.8109]
[1757059219570,1.27322,4420.6,4420.5,1.8109]
[1757059221866,1.02922,4420.6,4420.5,5.8109]
[1757059222066,1.02922,4420.6,4420.5,6.03712]
[1757059222369,1.27322,4420.6,4420.5,1.8109]
[1757059222664,1.02922,4420.6,4420.5,1.8109]
[1757059222868,1.27322,4420.6,4420.5,1.8109]
[1757059224569,1.02922,4420.6,4420.5,1.8109]
[1757059224970,1.27322,4420.6,4420.5,1.8109]
[1757059225870,1.27322,4420.6,4420.5,5.8109]
[1757059226067,3.2078,4421.3,4421.2,1.6757]
[1757059226266,0.244,4421.3,4421.2,1.6757]
[1757059226874,3.2078,4421.8,4421.2,1.6757]
[1757059227166,4.3943,4421.8,4421.7,1.6757]
[1757059227373,5.099,4421.8,4421.7,1.6757]
[1757059227768,3.2078,4421.8,4421.7,1.6757]
[1757059228271,3.4518,4421.8,4421.7,1.6757]
[1757059228473,4.6383,4421.8,4421.7,1.6757]
[1757059228873,1.1865,4420.8,4420.7,1.6757]
[1757059229074,1.4305,4420.8,4420.7,1.6757]
[1757059229476,3.9414,4421.3,4420.8,0.7107]
[1757059229670,1.1865,4421.2,4421.1,1.6757]
[1757059229871,1.4305,4421.2,4421.1,1.6757]
[1757059230069,0.244,4421.2,4421.1,1.6757]
[1757059230275,0.8466,4421.5,4421.2,0.7107]
[1757059230471,0.244,4421.4,4421.3,1.6757]
[1757059230775,1.6472,4421.3,4421.2,0.4859]
[1757059230971,4.855,4421.6,4421.5,0.4859]
[1757059231172,5.099,4421.6,4421.5,1.6757]
[1757059231371,0.244,4421.6,4421.5,1.6757]
[1757059231577,0.244,4421.6,4421.5,1.97]
[1757059231769,0.244,4421.6,4421.1,3.2078]
[1757059231770,0.9136,4421.6,4421.1,3.2078]
[1757059231971,1.6472,4421.2,4421.1,1.1033]
[1757059232281,1.8912,4421.2,4421.1,1.1033]
[1757059233176,5.8912,4421.2,4421.1,0.3562]
[1757059233474,0.9136,4420.0,4419.9,0.4859]
[1757059233673,1.8912,4420.0,4419.9,1.6757]
[1757059234284,1.8912,4420.0,4419.9,0.4859]
[1757059234478,1.9353,4419.5,4418.9,0.7107]
[1757059234780,0.4529,4419.0,4418.9,1.6757]
[1757059234978,1.6472,4419.0,4418.9,1.6757]
[1757059235182,1.2017,4419.0,4418.5,0.1526]
[1757059235377,0.4529,4418.7,4418.6,1.1966]
[1757059235582,1.0217,4418.5,4418.4,3.2078]
[1757059235778,0.7336,4418.4,4418.2,1.2115]
[1757059236078,0.9776,4418.3,4418.2,1.2115]
[1757059236384,0.7336,4418.3,4418.2,1.2115]
[1757059236583,0.9776,4418.3,4418.2,1.2115]
[1757059236883,0.9776,4418.3,4418.2,1.9222]
[1757059237082,0.7336,4418.3,4418.2,1.9222]
[1757059237282,0.9776,4418.3,4418.2,1.2115]
[1757059238483,0.244,4418.3,4417.8,1.5376]
[1757059239184,0.7336,4418.2,4417.8,1.5376]
[1757059239376,0.244,4418.3,4417.8,1.5376]
[1757059239578,0.7336,4418.2,4417.8,1.5376]
[1757059239779,0.7336,4418.2,4417.8,2.2483]
[1757059240087,0.244,4418.3,4417.8,1.5376]
[1757059240286,0.7336,4417.9,4417.8,1.5376]
[1757059240486,0.9776,4417.9,4417.8,2.2483]
[1757059240786,0.9776,4417.9,4417.8,1.5376]
[1757059241085,0.7336,4417.8,4417.5,0.7107]
[1757059241383,0.7336,4418.2,4417.7,3.2078]
[1757059241583,0.7336,4418.0,4417.6,0.7107]
[1757059241785,0.7336,4418.0,4417.5,0.2943]
[1757059242187,0.244,4418.1,4417.6,0.7107]
[1757059242487,1.6472,4418.0,4417.9,0.4859]
[1757059242681,1.6472,4418.0,4417.5,1.005]
[1757059242881,0.4529,4417.7,4417.6,1.6757]
[1757059243082,0.6969,4417.7,4417.6,1.6757]
[1757059243286,1.4305,4417.7,4417.6,1.6757]
[1757059244084,1.8912,4417.7,4417.6,1.6757]
[1757059244484,1.8912,4417.7,4417.6,0.4859]
[1757059245391,1.1943,4417.6,4417.5,1.1966]
[1757059245588,1.6472,4417.6,4417.5,1.1966]
[1757059246285,1.6472,4417.6,4417.5,0.7107]
[1757059246479,0.4529,4417.6,4417.5,1.97]
[1757059246683,0.244,4417.7,4417.6,0.7107]
[1757059246986,1.6472,4418.4,4418.3,1.6757]
[1757059247183,1.2996,4418.2,4418.1,1.6757]
[1757059247385,1.5436,4418.2,4418.1,1.6757]
[1757059247587,2.0043,4418.2,4418.1,1.6757]
[1757059248089,2.0043,4418.2,4418.1,0.4859]
[1757059248297,1.8912,4418.2,4418.1,1.1663]
[1757059248489,1.8912,4418.2,4418.1,0.4859]
[1757059248689,1.1576,4418.2,4417.8,1.6083]
[1757059248891,1.2126,4417.9,4417.8,2.7501]
[1757059249098,1.6734,4417.9,4417.8,2.7501]
[1757059249288,1.6734,4417.9,4417.8,3.2182]
[1757059249487,0.4948,4418.0,4417.9,1.1485]
[1757059249693,0.4948,4418.0,4417.9,1.6099]
[1757059250094,0.1131,4418.3,4418.0,0.9547]
[1757059250301,0.244,4418.2,4418.1,0.9295]
[1757059250602,0.7388,4418.2,4418.1,1.6099]
[1757059250900,0.7388,4418.2,4418.1,0.4614]
[1757059250901,1.9174,4418.2,4418.1,0.4614]
[1757059251303,1.9174,4418.2,4418.1,0.2114]
[1757059251609,0.7178,4418.9,4418.2,0.6804]
[1757059251797,0.244,4418.8,4418.1,3.2078]
[1757059251998,1.6734,4418.9,4418.8,1.6099]
[1757059252302,0.7178,4418.8,4418.2,1.6099]
[1757059252498,3.4959,4419.0,4418.3,1.6099]
[1757059252499,1.2126,4418.4,4418.3,1.6099]
[1757059252701,0.4948,4418.4,4418.3,1.6099]
[1757059252903,0.7388,4418.4,4418.3,1.6099]
[1757059253795,1.4566,4418.4,4418.3,1.6099]
[1757059254506,1.9174,4418.4,4418.3,1.6099]
[1757059255312,1.9174,4418.4,4417.9,0.6804]
[1757059255808,1.6734,4418.3,4418.2,0.4614]
[1757059256406,1.6734,4418.3,4417.9,0.6804]
[1757059256708,0.9556,4417.9,4417.8,2.4823]
[1757059256908,1.9174,4417.9,4417.8,3.1627]
[1757059257200,1.9174,4417.9,4417.8,1.6099]
[1757059258001,1.9174,4417.9,4417.8,0.9295]
[1757059258206,1.9174,4417.9,4417.4,4.3496]
[1757059258207,0.9556,4417.5,4417.4,4.3496]
[1757059258513,2.2063,4417.5,4417.4,3.6692]
[1757059259309,1.4885,4417.5,4417.1,1.1409]
[1757059259605,1.6734,4417.2,4417.1,1.1409]
[1757059259796,4.8812,4417.2,4417.1,1.1409]
[1757059260904,4.8812,4417.2,4416.7,0.6804]
[1757059261105,1.6734,4416.8,4416.7,0.4614]
[1757059261306,1.6734,4416.8,4414.5,0.2743]
[1757059261307,0.7178,4416.2,4415.6,4.8177]
[1757059261507,0.4948,4415.7,4415.6,1.6099]
[1757059261812,1.4566,4415.7,4415.6,1.6099]
[1757059262308,1.9174,4415.7,4415.6,1.6099]
[1757059262714,1.9174,4415.7,4415.6,0.9295]
[1757059263102,1.9174,4415.7,4415.6,0.4614]
[1757059263604,1.9174,4415.7,4415.6,1.1418]
[1757059263811,0.7388,4415.7,4415.6,1.6099]
[1757059264014,0.244,4415.7,4415.6,1.6099]
[1757059264812,1.2126,4416.0,4415.9,1.6099]
[1757059265012,1.4566,4416.0,4415.9,1.6099]
[1757059266116,1.9174,4416.0,4415.9,1.6099]
[1757059266323,1.9174,4416.0,4415.9,0.9295]
[1757059266618,2.2063,4416.0,4415.9,0.9295]
[1757059267206,1.4885,4416.0,4415.4,1.3562]
[1757059267411,0.4948,4415.5,4415.4,2.2857]
[1757059267607,0.7388,4415.5,4415.4,2.9661]
[1757059267812,0.7388,4415.5,4415.4,1.6099]
[1757059268021,0.244,4415.5,4415.4,1.6099]
[1757059268211,0.2889,4416.0,4415.5,0.6804]
[1757059268413,1.2126,4416.7,4416.6,0.9295]
[1757059268615,1.4566,4416.7,4416.6,1.6099]
[1757059269112,32.4516,4417.2,4417.1,1.6099]
[1757059269317,33.1564,4417.2,4417.1,1.6099]
[1757059269508,33.1564,4417.2,4417.1,0.9295]
[1757059269712,33.1564,4417.2,4416.5,0.2743]
[1757059269713,32.4386,4417.2,4416.9,1.6767]
[1757059269910,1.9623,4417.0,4416.9,1.6767]
[1757059271914,5.6734,4417.0,4416.9,2.6062]
[1757059272115,31.239,4417.2,4417.0,0.2743]
[1757059272323,31.7338,4417.2,4417.1,1.6099]
[1757059272513,32.6956,4417.2,4417.1,1.6099]
[1757059272911,31.9778,4417.2,4417.1,1.6099]
[1757059273115,31.483,4417.2,4417.1,1.6099]
[1757059273312,0.4948,4416.1,4416.0,1.6099]
[1757059273617,0.244,4416.1,4416.0,1.8842]
[1757059274221,0.244,4416.1,4416.0,1.2038]
[1757059274923,0.244,4416.1,4416.0,1.8842]
[1757059275419,0.244,4416.3,4416.2,0.9295]
[1757059275623,0.244,4416.5,4416.3,0.6804]
[1757059275816,0.244,4416.5,4416.4,1.6099]
[1757059276216,0.7178,4416.9,4416.5,0.2743]
[1757059276518,1.2126,4416.9,4416.8,1.6099]
[1757059276717,1.9174,4416.9,4416.8,1.6099]
[1757059276914,1.6734,4416.9,4416.8,1.6099]
[1757059277121,1.9174,4416.9,4416.8,1.6099]
[1757059277631,1.6734,4416.9,4416.8,1.6099]
[1757059277828,1.9174,4416.9,4416.3,0.6804]
[1757059278011,1.9174,4416.9,4415.9,0.7137]
[1757059278323,0.244,4416.8,4416.1,0.7137]
[1757059279122,0.4557,4416.2,4416.1,1.6438]
[1757059279319,0.6997,4416.2,4416.1,1.6438]
[1757059279821,0.4557,4416.2,4416.1,1.6438]
[1757059280024,0.6997,4416.2,4416.1,1.6438]
[1757059280216,0.4557,4415.9,4415.8,3.2467]
[1757059280526,0.4557,4415.9,4415.8,1.6438]
[1757059281020,0.971,4416.2,4415.9,0.7137]
[1757059281220,1.1644,4416.2,4416.1,1.1845]
[1757059281421,1.1644,4416.2,4416.1,1.6438]
[1757059281728,1.8914,4416.2,4416.1,1.6438]
[1757059281924,1.1644,4416.2,4415.7,3.2078]
[1757059282221,0.727,4415.9,4414.3,0.7137]
[1757059282521,3.2078,4414.8,4414.3,0.7137]
[1757059283022,0.244,4415.7,4414.8,0.7137]
[1757059283421,0.2889,4417.0,4415.7,0.7137]
[1757059283422,3.2078,4416.4,4415.7,0.7137]
[1757059285229,0.244,4416.3,4415.7,0.7137]
[1757059285527,0.971,4416.3,4415.7,0.7137]
[1757059286231,0.244,4416.3,4415.8,0.6464]
[1757059286531,3.9348,4415.9,4415.8,0.6464]
[1757059286832,4.1788,4415.9,4415.8,0.6464]
[1757059288130,3.9348,4415.9,4415.8,0.6464]
[1757059288329,4.1788,4415.9,4415.8,0.6464]
[1757059288931,8.1788,4415.9,4414.7,0.7137]
[1757059289129,0.727,4415.4,4414.7,0.7137]
[1757059289330,0.244,4415.3,4414.2,0.7137]
[1757059289530,0.296,4415.0,4414.8,1.4553]
[1757059289730,0.971,4414.9,4414.8,1.4553]
[1757059291134,100.296,4415.0,4414.9,1.12135]
[1757059291135,100.0,4415.0,4414.9,1.12135]
[1757059291334,100.0,4415.0,4414.9,5.12135]
[1757059291536,100.0,4415.0,4414.9,1.12135]
[1757059291831,100.0,4415.0,4414.9,5.12135]
[1757059295038,100.0,4415.0,4414.9,1.12135]
[1757059295532,100.0,4415.0,4414.8,1.4553]
[1757059295533,0.727,4414.9,4414.8,1.4553]
[1757059295838,100.0,4415.0,4414.9,0.7137]
[1757059296536,100.0,4415.0,4414.9,1.12135]
[1757059297432,100.0,4415.0,4413.2,10.19509]
[1757059297630,100.0,4415.0,3861.0,0.00513602]
[1757059297631,0.727,4414.9,4414.8,0.40766]
[1757059298638,1.023,4414.5,4414.4,0.244]
[1757059298836,1.023,4414.5,4414.3,0.4077]
[1757059299137,0.727,4414.4,4414.3,0.4077]
[1757059299934,0.296,4414.0,4413.9,4.5307]
[1757059300137,4.2308,4414.0,4413.9,1.3229]
[1757059301430,4.4748,4414.0,4413.9,1.3229]
[1757059302232,4.4748,4414.0,4412.9,0.244]
[1757059302542,0.296,4413.5,4413.4,0.40778]
[1757059302838,0.296,4413.5,4413.1,3.2078]
[1757059302839,0.296,4413.0,4412.9,0.244]
[1757059303037,1.023,4413.0,4412.9,0.244]
[1757059303237,1.023,4413.0,4412.9,0.65183]
[1757059303832,0.727,4412.9,4412.8,0.1722243]
[1757059304633,0.727,4412.9,4412.8,0.48061479]
[1757059304831,0.727,4412.9,4412.4,1.4871]
[1757059304832,0.296,4412.5,4412.4,1.4871]
[1757059305039,1.023,4412.5,4412.4,1.4871]
[1757059305240,1.023,4412.5,4412.4,0.722]
[1757059306032,5.023,4412.5,4412.4,0.722]
[1757059306432,0.727,4411.9,4411.8,1.92662942]
[1757059306634,3.9348,4411.9,4411.8,1.92662942]
[1757059308338,0.2979,4411.0,4410.4,3.2078]
[1757059308534,0.2979,4411.0,4410.5,0.244]
[1757059308738,3.2078,4410.9,4409.8,3.2078]
[1757059309036,0.6909,4411.7,4411.4,0.40796]
[1757059309243,0.6909,4411.7,4411.1,0.40799]
[1757059309543,3.8987,4412.3,4411.3,3.2078]
[1757059309742,0.6909,4412.2,4411.8,0.40793]
[1757059309949,0.6909,4412.2,4411.9,0.244]
[1757059310138,3.2078,4412.3,4412.1,0.4079]
[1757059310338,0.6909,4412.5,4412.4,0.40787]
[1757059310536,0.9888,4412.5,4412.4,0.40787]
[1757059310737,0.9888,4412.5,4412.4,0.65187]
[1757059310941,0.9888,4412.5,4412.4,0.244]
[1757059311138,0.9888,4412.5,4411.7,1.3201]
[1757059311139,0.6909,4411.9,4411.7,1.3201]
[1757059311338,3.2078,4411.8,4411.7,1.3201]
[1757059311540,3.8987,4411.8,4411.7,1.3201]
[1757059311738,3.8987,4411.8,4411.7,1.5641]
[1757059311939,3.8987,4411.8,4411.5,0.244]
[1757059312542,3.8987,4411.8,4411.4,0.40796]
[1757059312740,0.9888,4411.5,4411.4,0.40796]
[1757059312940,0.9888,4411.5,4411.4,0.65196]
[1757059313351,0.2979,4411.5,4411.4,0.244]
[1757059313741,0.2979,4411.5,4411.3,0.40797]
[1757059314045,0.6909,4411.4,4411.0,1.72839]
[1757059314247,0.6909,4411.4,4411.0,1.3204]
[1757059314443,3.2078,4411.3,4411.0,1.5644]
[1757059314643,3.2078,4411.3,4411.0,1.3204]
[1757059315048,0.6909,4411.2,4411.0,1.3204]
[1757059315351,0.9349,4411.1,4411.0,1e-08]
[1757059315743,4.9349,4411.1,4411.0,1e-08]
[1757059315942,5.1616,4411.1,4411.0,1e-08]
[1757059316743,4.9349,4411.1,4411.0,1e-08]
[1757059317049,5.1616,4411.1,4411.0,1e-08]
[1757059317545,1.1616,4411.1,4411.0,1e-08]
[1757059317745,0.6909,4411.1,4411.0,1e-08]
[1757059317952,4.9349,4411.1,4411.0,1e-08]
[1757059318152,0.9349,4411.1,4411.0,1e-08]
[1757059318740,4.9349,4411.1,4411.0,1e-08]
[1757059319047,4.9349,4411.1,4408.0,0.9256]
[1757059319048,0.6909,4409.4,4408.0,0.9256]
[1757059319240,0.6909,4408.7,4408.1,0.30441515]
[1757059319548,0.6909,4408.5,4408.2,0.30441515]
[1757059319744,0.6909,4408.5,4408.3,0.30441515]
[1757059319952,0.6909,4408.5,4408.4,0.30441515]
[1757059320148,0.6909,4408.5,4407.9,0.75]
[1757059320149,0.9888,4408.5,4407.9,0.75]
[1757059320347,0.6909,4408.5,4408.1,0.75]
[1757059320548,0.128,4408.6,4408.3,0.75]
[1757059320746,0.6909,4408.5,4407.6,0.75]
[1757059321051,3.8987,4408.0,4407.6,0.75]
[1757059321240,3.8987,4408.0,4407.5,0.2972]
[1757059321441,0.9359,4407.9,4407.2,0.75]
[1757059321853,0.9359,4407.9,4407.3,0.30453125]
[1757059322048,0.9359,4407.9,4407.4,0.30453125]
[1757059322049,0.6909,4407.8,4407.4,0.30453125]
[1757059322253,0.6909,4407.8,4407.2,0.75]
[1757059322449,0.6909,4407.8,4407.0,0.2972]
[1757059322450,0.6909,4407.8,4407.1,0.75]
[1757059322750,3.2078,4408.0,4407.6,0.75]
[1757059323047,0.245,4407.9,4407.6,4.0]
[1757059323249,0.245,4407.9,4407.6,0.75]
[1757059323448,3.4528,4407.9,4407.0,0.2972]
[1757059323752,3.2078,4407.4,4407.0,0.2972]
[1757059324052,0.245,4407.3,4407.1,0.75]
[1757059324248,0.245,4407.4,4407.1,0.75]
[1757059324751,0.6909,4407.8,4407.0,0.2972]
[1757059324950,0.245,4407.4,4407.0,0.2972]
[1757059325156,0.245,4407.4,4407.1,0.75]
[1757059325858,0.245,4407.8,4407.2,0.75]
[1757059326256,0.6909,4407.4,4407.2,0.75]
[1757059326451,0.9359,4407.3,4407.2,0.75]
[1757059326958,0.6909,4407.4,4407.0,0.75]
[1757059327161,3.2078,4407.5,4407.0,0.75]
[1757059327162,0.6909,4407.2,4407.0,0.75]
[1757059327351,0.6909,4407.2,4406.0,0.75]
[1757059327551,3.2078,4406.5,4405.6,0.75]
[1757059327853,3.2078,4406.5,4406.0,0.2972]
[1757059328053,3.4538,4407.0,4406.1,0.75]
[1757059328361,3.2078,4407.5,4407.1,0.75]
[1757059328564,3.2078,4407.5,4407.2,0.40835]
[1757059328753,0.6909,4407.8,4407.1,0.75]
[1757059328954,3.2078,4407.5,4407.0,0.2972]
[1757059329256,0.6909,4407.4,4406.8,0.75]
[1757059329458,0.6909,4407.4,4406.4,0.75]
[1757059329664,0.247,4407.3,4406.4,0.75]
[1757059329957,3.2078,4406.9,4406.4,0.75]
[1757059330152,3.2078,4406.9,4406.2,3.2078]
[1757059330355,0.6909,4406.8,4406.2,3.61624]
[1757059330661,3.8987,4407.4,4406.6,0.75]
[1757059330953,3.2078,4407.4,4407.0,0.40836]
[1757059331151,0.6909,4407.7,4407.4,0.40834]
[1757059331547,0.6909,4407.7,4407.0,0.2972]
[1757059331749,0.6909,4408.2,4407.8,0.75]
[1757059331950,3.2078,4408.0,4407.7,1.1583]
[1757059332150,3.8987,4408.0,4407.8,0.75]
[1757059332359,0.6909,4407.9,4407.5,0.75]
[1757059332656,0.6909,4407.9,4407.0,0.2972]
[1757059332657,0.6909,4407.8,4407.0,0.997]
[1757059332860,0.6909,4407.8,4407.2,0.40835]
[1757059333055,3.4548,4407.9,4407.2,0.40835]
[1757059333361,4.1457,4407.9,4407.3,0.75]
[1757059333954,0.6909,4407.9,4407.3,0.75]
[1757059334149,0.6909,4408.3,4407.3,0.75]
[1757059334355,0.6909,4408.3,4407.5,1.0472]
[1757059334860,0.6909,4408.3,4407.6,0.40831]
[1757059335763,0.6909,4408.3,4407.7,0.75]
[1757059335960,0.6909,4408.3,4407.8,0.40829]
[1757059336257,0.6909,4408.3,4408.0,0.75]
[1757059336452,0.6909,4408.3,4407.9,0.40828]
[1757059336658,0.6909,4408.3,4408.0,0.75]
[1757059337057,0.6909,4408.3,4407.9,0.40829]
[1757059337257,3.2078,4408.4,4407.9,0.40829]
[1757059337258,3.2078,4408.4,4407.9,0.75]
[1757059337458,3.2078,4408.4,4407.8,0.75]
[1757059337657,0.6909,4408.3,4407.7,0.996]
[1757059337854,0.6909,4408.3,4407.8,3.6161]
[1757059338260,0.2979,4408.5,4407.8,3.6161]
[1757059338454,1.1576,4408.4,4407.9,1.1054]
[1757059338659,1.4555,4408.5,4407.9,1.1054]
[1757059338856,1.4555,4408.5,4407.8,3.6161]
[1757059338857,1.1576,4408.5,4407.8,3.2078]
[1757059339061,3.2078,4408.9,4408.2,1.1054]
[1757059339356,3.2078,4408.9,4408.6,1.1054]
[1757059339554,1.1576,4409.2,4408.6,1.1054]
[1757059339760,3.2078,4409.4,4409.3,1.1054]
[1757059340161,3.5057,4410.0,4409.1,0.246]
[1757059340470,1.1576,4409.9,4409.5,1.1054]
[1757059340665,3.2078,4410.0,4409.2,1.1054]
[1757059340871,1.1576,4410.4,4409.8,1.1054]
[1757059341072,1.1576,4410.4,4409.8,1.3514]